[Event "Titled Tuesday Blitz July 11 Late 2023"]
[White "Seletsky, Grigory"]
[Black "Cugimura97"]
[WhiteFideId "14112191"]
[WhiteElo "2409"]
[BlackElo "2697"]
[Result "0-1"]
[Round "2"]
[TimeControl "180+2"]
[Date "2023.07.11"]
[WhiteClock "0:00:09"]
[BlackClock "0:00:41"]
[Board "67"]

1. e3 {[%clk 0:03:00]}  d5 {[%clk 0:02:57]} 2. d4 {[%clk 0:03:01]}  Nf6 {[%clk 0:02:55]} 3. c4 {[%clk 0:03:01]}  c6 {[%clk 0:02:54]} 4. Nc3 {[%clk 0:03:02]}  a6 {[%clk 0:02:47]} 5. Nf3 {[%clk 0:02:57]}  Bg4 {[%clk 0:02:46]} 6. Qb3 {[%clk 0:02:53]}  b5 {[%clk 0:02:43]} 7. cxd5 {[%clk 0:02:52]}  cxd5 {[%clk 0:02:42]} 8. Ne5 {[%clk 0:02:52]}  e6 {[%clk 0:02:40]} 9. a4 {[%clk 0:02:40]}  b4 {[%clk 0:02:37]} 10. Na2 {[%clk 0:02:38]}  Nbd7 {[%clk 0:02:32]} 11. Nxg4 {[%clk 0:02:36]}  Nxg4 {[%clk 0:02:31]} 12. h3 {[%clk 0:02:36]}  Ngf6 {[%clk 0:02:31]} 13. a5 {[%clk 0:02:34]}  Bd6 {[%clk 0:02:29]} 14. Bd2 {[%clk 0:02:30]}  Ne4 {[%clk 0:02:18]} 15. Bxb4 {[%clk 0:02:29]}  Qh4 {[%clk 0:02:16]} 16. g3 {[%clk 0:02:20]}  Bxg3 {[%clk 0:02:12]} 17. fxg3 {[%clk 0:02:10]}  Qxg3+ {[%clk 0:02:13]} 18. Ke2 {[%clk 0:01:50]}  Qf2+ {[%clk 0:01:56]} 19. Kd1 {[%clk 0:01:45]}  Rb8 {[%clk 0:01:48]} 20. Be2 {[%clk 0:01:34]}  Qg3 {[%clk 0:01:39]} 21. Rf1 {[%clk 0:01:29]}  Nd6 {[%clk 0:01:33]} 22. Qa3 {[%clk 0:01:12]}  Nc4 {[%clk 0:01:30]} 23. Bxc4 {[%clk 0:01:12]}  dxc4 {[%clk 0:01:31]} 24. Be1 {[%clk 0:00:55]}  Qxh3 {[%clk 0:01:29]} 25. Rf2 {[%clk 0:00:54]}  Rb3 {[%clk 0:01:28]} 26. Qa4 {[%clk 0:00:51]}  Rxe3 {[%clk 0:01:22]} 27. Qxc4 {[%clk 0:00:48]}  O-O {[%clk 0:01:22]} 28. Nc3 {[%clk 0:00:46]}  Qg4+ {[%clk 0:01:19]} 29. Kc2 {[%clk 0:00:38]}  e5 {[%clk 0:01:08]} 30. Ra4 {[%clk 0:00:35]}  Rxe1 {[%clk 0:01:07]} 31. dxe5 {[%clk 0:00:34]}  Qg6+ {[%clk 0:01:04]} 32. Kb3 {[%clk 0:00:33]}  Rb8+ {[%clk 0:00:54]} 33. Ka2 {[%clk 0:00:33]}  Qg1 {[%clk 0:00:51]} 34. Qxf7+ {[%clk 0:00:19]}  Kh8 {[%clk 0:00:51]} 35. Rb4 {[%clk 0:00:15]}  Ra1+ {[%clk 0:00:47]} 36. Kb3 {[%clk 0:00:15]}  Nc5+ {[%clk 0:00:48]} 37. Kc4 {[%clk 0:00:14]}  Qg4+ {[%clk 0:00:43]} 38. Rf4 {[%clk 0:00:13]}  Qxf4+ {[%clk 0:00:42]} 39. Qxf4 {[%clk 0:00:12]}  Rxb4+ {[%clk 0:00:41]} 40. Kxb4 {[%clk 0:00:12]}  Nd3+ {[%clk 0:00:40]} 41. Kc4 {[%clk 0:00:10]}  Nxf4 {[%clk 0:00:41]} 42. e6 {[%clk 0:00:09]}  Nxe6 {[%clk 0:00:41]} 0-1


[Site "https://www.chess.com"]

[Event "Titled Tuesday Blitz July 11 Late 2023"]
[White "Pinero Rodriguez, Carlos Jose"]
[Black "Goryachkina, Aleksandra"]
[WhiteFideId "3901726"]
[BlackFideId "4147103"]
[WhiteElo "2391"]
[BlackElo "2691"]
[Result "1-0"]
[Round "2"]
[TimeControl "180+2"]
[Date "2023.07.11"]
[WhiteClock "0:00:13"]
[BlackClock "0:00:00"]
[Board "69"]

1. b3 {[%clk 0:02:59]}  d5 {[%clk 0:02:59]} 2. Bb2 {[%clk 0:02:59]}  c5 {[%clk 0:02:59]} 3. e3 {[%clk 0:02:59]}  a6 {[%clk 0:02:59]} 4. f4 {[%clk 0:02:58]}  Nc6 {[%clk 0:02:59]} 5. Nf3 {[%clk 0:02:59]}  Bf5 {[%clk 0:02:59]} 6. d3 {[%clk 0:02:59]}  e6 {[%clk 0:02:59]} 7. h3 {[%clk 0:02:56]}  h6 {[%clk 0:02:53]} 8. g4 {[%clk 0:02:55]}  Bh7 {[%clk 0:02:52]} 9. Nbd2 {[%clk 0:02:56]}  Nf6 {[%clk 0:02:51]} 10. Bg2 {[%clk 0:02:54]}  Bd6 {[%clk 0:02:34]} 11. O-O {[%clk 0:02:52]}  d4 {[%clk 0:02:25]} 12. exd4 {[%clk 0:02:40]}  Bxf4 {[%clk 0:01:51]} 13. dxc5 {[%clk 0:02:38]}  Be3+ {[%clk 0:01:51]} 14. Kh1 {[%clk 0:02:38]}  Bxc5 {[%clk 0:01:51]} 15. Ne5 {[%clk 0:02:22]}  Nxe5 {[%clk 0:01:37]} 16. Bxe5 {[%clk 0:02:23]}  Qe7 {[%clk 0:01:35]} 17. Qf3 {[%clk 0:02:09]}  Ra7 {[%clk 0:01:20]} 18. Rae1 {[%clk 0:02:05]}  O-O {[%clk 0:01:07]} 19. Bxf6 {[%clk 0:01:58]}  Qxf6 {[%clk 0:01:06]} 20. Qxf6 {[%clk 0:01:59]}  gxf6 {[%clk 0:01:06]} 21. Rxf6 {[%clk 0:02:00]}  Kg7 {[%clk 0:01:06]} 22. Rff1 {[%clk 0:01:57]}  b5 {[%clk 0:01:04]} 23. Be4 {[%clk 0:01:56]}  f5 {[%clk 0:00:58]} 24. gxf5 {[%clk 0:01:56]}  exf5 {[%clk 0:00:58]} 25. Bf3 {[%clk 0:01:50]}  Rc7 {[%clk 0:00:57]} 26. Re2 {[%clk 0:01:49]}  Bd4 {[%clk 0:00:51]} 27. c4 {[%clk 0:01:49]}  Rd8 {[%clk 0:00:45]} 28. Bd5 {[%clk 0:01:37]}  Bf6 {[%clk 0:00:17]} 29. Rg1+ {[%clk 0:01:24]}  Kh8 {[%clk 0:00:17]} 30. Nf3 {[%clk 0:01:25]}  Bg8 {[%clk 0:00:11]} 31. Bxg8 {[%clk 0:01:24]}  Rxg8 {[%clk 0:00:11]} 32. Rxg8+ {[%clk 0:01:25]}  Kxg8 {[%clk 0:00:11]} 33. Re6 {[%clk 0:01:21]}  Kf7 {[%clk 0:00:11]} 34. Rxa6 {[%clk 0:01:19]}  bxc4 {[%clk 0:00:10]} 35. dxc4 {[%clk 0:01:18]}  Re7 {[%clk 0:00:10]} 36. Ra5 {[%clk 0:01:13]}  Kg6 {[%clk 0:00:09]} 37. Rd5 {[%clk 0:01:13]}  Re3 {[%clk 0:00:08]} 38. Kg2 {[%clk 0:00:49]}  Re2+ {[%clk 0:00:08]} 39. Kg3 {[%clk 0:00:49]}  Rxa2 {[%clk 0:00:09]} 40. Rd2 {[%clk 0:00:50]}  Ra3 {[%clk 0:00:08]} 41. Rd3 {[%clk 0:00:49]}  h5 {[%clk 0:00:07]} 42. Nd2 {[%clk 0:00:47]}  h4+ {[%clk 0:00:06]} 43. Kf3 {[%clk 0:00:47]}  Bg5 {[%clk 0:00:05]} 44. Nf1 {[%clk 0:00:41]}  Kf6 {[%clk 0:00:04]} 45. Ne3 {[%clk 0:00:40]}  Ke6 {[%clk 0:00:04]} 46. Nd5 {[%clk 0:00:40]}  Ra1 {[%clk 0:00:03]} 47. c5 {[%clk 0:00:37]}  Rc1 {[%clk 0:00:02]} 48. b4 {[%clk 0:00:36]}  Ke5 {[%clk 0:00:02]} 49. Nc3 {[%clk 0:00:29]}  Rg1 {[%clk 0:00:02]} 50. Kf2 {[%clk 0:00:27]}  Rc1 {[%clk 0:00:02]} 51. c6 {[%clk 0:00:24]}  Bd2 {[%clk 0:00:01]} 52. Rxd2 {[%clk 0:00:14]}  Rxc3 {[%clk 0:00:01]} 53. b5 {[%clk 0:00:15]}  Ke4 {[%clk 0:00:02]} 54. Rb2 {[%clk 0:00:13]}  Rf3+ {[%clk 0:00:01]} 55. Kg2 {[%clk 0:00:13]}  Rg3+ {[%clk 0:00:02]} 56. Kh2 {[%clk 0:00:13]}  f4 {[%clk 0:00:02]} 57. c7 {[%clk 0:00:12]}  Rg8 {[%clk 0:00:02]} 58. b6 {[%clk 0:00:12]}  f3 {[%clk 0:00:01]} 59. b7 {[%clk 0:00:13]}  Ke3 {[%clk 0:00:00]} 60. c8=Q {[%clk 0:00:13]} 1-0


[Site "https://www.chess.com"]

[Event "Titled Tuesday Blitz July 11 Late 2023"]
[White "2KRK1"]
[Black "Krzywda, Andrzej"]
[BlackFideId "1114565"]
[WhiteElo "2690"]
[BlackElo "2382"]
[Result "1-0"]
[Round "2"]
[TimeControl "180+2"]
[Date "2023.07.11"]
[WhiteClock "0:00:19"]
[BlackClock "0:00:04"]
[Board "70"]

1. Nf3 {[%clk 0:02:57]}  d5 {[%clk 0:02:59]} 2. b3 {[%clk 0:02:57]}  Nf6 {[%clk 0:02:57]} 3. e3 {[%clk 0:02:56]}  g6 {[%clk 0:02:57]} 4. Bb2 {[%clk 0:02:56]}  Bg7 {[%clk 0:02:58]} 5. c4 {[%clk 0:02:57]}  dxc4 {[%clk 0:02:51]} 6. Bxc4 {[%clk 0:02:55]}  c5 {[%clk 0:02:49]} 7. O-O {[%clk 0:02:53]}  O-O {[%clk 0:02:48]} 8. d4 {[%clk 0:02:48]}  Ne4 {[%clk 0:02:42]} 9. Qe2 {[%clk 0:02:43]}  cxd4 {[%clk 0:02:22]} 10. Rd1 {[%clk 0:02:26]}  Nd6 {[%clk 0:02:11]} 11. Bxd4 {[%clk 0:02:20]}  Nc6 {[%clk 0:02:05]} 12. Bxg7 {[%clk 0:02:16]}  Kxg7 {[%clk 0:02:06]} 13. Qb2+ {[%clk 0:01:49]}  Kg8 {[%clk 0:02:06]} 14. Be2 {[%clk 0:01:48]}  Qa5 {[%clk 0:02:03]} 15. Nc3 {[%clk 0:01:46]}  Bg4 {[%clk 0:01:48]} 16. Nd5 {[%clk 0:01:37]}  Be6 {[%clk 0:01:19]} 17. Nxe7+ {[%clk 0:01:23]}  Nxe7 {[%clk 0:01:20]} 18. Rxd6 {[%clk 0:01:24]}  Rac8 {[%clk 0:01:06]} 19. Rad1 {[%clk 0:01:19]}  Nf5 {[%clk 0:01:01]} 20. R6d2 {[%clk 0:01:16]}  Qb4 {[%clk 0:00:49]} 21. Ng5 {[%clk 0:01:05]}  Rce8 {[%clk 0:00:37]} 22. Nxe6 {[%clk 0:00:48]}  Rxe6 {[%clk 0:00:37]} 23. Rd7 {[%clk 0:00:48]}  Qb6 {[%clk 0:00:28]} 24. Bc4 {[%clk 0:00:42]}  Nxe3 {[%clk 0:00:16]} 25. fxe3 {[%clk 0:00:39]}  Qxe3+ {[%clk 0:00:17]} 26. Qf2 {[%clk 0:00:39]}  Qxf2+ {[%clk 0:00:07]} 27. Kxf2 {[%clk 0:00:40]}  Rf6+ {[%clk 0:00:07]} 28. Kg1 {[%clk 0:00:40]}  Re8 {[%clk 0:00:07]} 29. Rxb7 {[%clk 0:00:37]}  Re3 {[%clk 0:00:05]} 30. Rxa7 {[%clk 0:00:29]}  Rc3 {[%clk 0:00:05]} 31. Rf1 {[%clk 0:00:30]}  Rxf1+ {[%clk 0:00:03]} 32. Kxf1 {[%clk 0:00:28]}  Rc2 {[%clk 0:00:03]} 33. Rxf7 {[%clk 0:00:19]}  Kh8 {[%clk 0:00:03]} 34. Rf2 {[%clk 0:00:19]}  Rc3 {[%clk 0:00:03]} 35. Ke2 {[%clk 0:00:18]}  Rc1 {[%clk 0:00:02]} 36. Kd2 {[%clk 0:00:17]}  Ra1 {[%clk 0:00:03]} 37. Kc3 {[%clk 0:00:17]}  Kg7 {[%clk 0:00:03]} 38. a4 {[%clk 0:00:17]}  h5 {[%clk 0:00:03]} 39. Kb2 {[%clk 0:00:16]}  Re1 {[%clk 0:00:03]} 40. a5 {[%clk 0:00:16]}  Re7 {[%clk 0:00:03]} 41. Rf7+ {[%clk 0:00:15]}  Rxf7 {[%clk 0:00:03]} 42. Bxf7 {[%clk 0:00:16]}  Kxf7 {[%clk 0:00:04]} 43. a6 {[%clk 0:00:17]}  Kf6 {[%clk 0:00:04]} 44. a7 {[%clk 0:00:17]}  Kg5 {[%clk 0:00:05]} 45. a8=Q {[%clk 0:00:18]}  Kh4 {[%clk 0:00:05]} 46. Qe4+ {[%clk 0:00:18]}  Kg5 {[%clk 0:00:05]} 47. g3 {[%clk 0:00:18]}  h4 {[%clk 0:00:04]} 48. Qf4+ {[%clk 0:00:18]}  Kh5 {[%clk 0:00:04]} 49. Qxh4# {[%clk 0:00:19]} 1-0


[Site "https://www.chess.com"]

[Event "Titled Tuesday Blitz July 11 Late 2023"]
[White "Tarasova, Viktoriya"]
[Black "Lavrik, Dmitry"]
[WhiteFideId "4175840"]
[BlackFideId "24113190"]
[WhiteElo "2372"]
[BlackElo "2685"]
[Result "0-1"]
[Round "2"]
[TimeControl "180+2"]
[Date "2023.07.11"]
[WhiteClock "0:00:00"]
[BlackClock "0:00:11"]
[Board "71"]

1. d4 {[%clk 0:03:00]}  Nf6 {[%clk 0:02:59]} 2. c4 {[%clk 0:03:01]}  g6 {[%clk 0:02:59]} 3. Nc3 {[%clk 0:03:01]}  d5 {[%clk 0:03:00]} 4. cxd5 {[%clk 0:02:58]}  Nxd5 {[%clk 0:03:00]} 5. g3 {[%clk 0:02:58]}  Bg7 {[%clk 0:02:57]} 6. Bg2 {[%clk 0:02:59]}  Nxc3 {[%clk 0:02:57]} 7. bxc3 {[%clk 0:02:59]}  c5 {[%clk 0:02:58]} 8. e3 {[%clk 0:02:59]}  O-O {[%clk 0:02:57]} 9. Ne2 {[%clk 0:02:58]}  Nc6 {[%clk 0:02:51]} 10. O-O {[%clk 0:02:58]}  Qc7 {[%clk 0:02:50]} 11. d5 {[%clk 0:02:53]}  Na5 {[%clk 0:02:42]} 12. Qc2 {[%clk 0:02:51]}  e6 {[%clk 0:02:25]} 13. Nf4 {[%clk 0:02:46]}  e5 {[%clk 0:02:11]} 14. Ne2 {[%clk 0:02:45]}  Nc4 {[%clk 0:02:11]} 15. Rb1 {[%clk 0:02:28]}  Rb8 {[%clk 0:01:53]} 16. e4 {[%clk 0:02:18]}  b6 {[%clk 0:01:51]} 17. f4 {[%clk 0:02:18]}  exf4 {[%clk 0:01:43]} 18. gxf4 {[%clk 0:02:16]}  Re8 {[%clk 0:01:38]} 19. Ng3 {[%clk 0:02:13]}  h5 {[%clk 0:01:20]} 20. e5 {[%clk 0:02:09]}  h4 {[%clk 0:01:19]} 21. Ne4 {[%clk 0:02:09]}  h3 {[%clk 0:01:19]} 22. Bh1 {[%clk 0:01:56]}  Bf5 {[%clk 0:01:18]} 23. d6 {[%clk 0:01:11]}  Qd8 {[%clk 0:01:18]} 24. Qd3 {[%clk 0:01:05]}  b5 {[%clk 0:00:55]} 25. a4 {[%clk 0:00:49]}  a6 {[%clk 0:00:50]} 26. axb5 {[%clk 0:00:49]}  axb5 {[%clk 0:00:51]} 27. Qd5 {[%clk 0:00:41]}  Nxe5 {[%clk 0:00:39]} 28. fxe5 {[%clk 0:00:28]}  Rxe5 {[%clk 0:00:40]} 29. Qc6 {[%clk 0:00:21]}  Qh4 {[%clk 0:00:22]} 30. Bf4 {[%clk 0:00:18]}  Re6 {[%clk 0:00:21]} 31. Bg3 {[%clk 0:00:15]}  Qd8 {[%clk 0:00:15]} 32. Rbe1 {[%clk 0:00:14]}  b4 {[%clk 0:00:14]} 33. Qc7 {[%clk 0:00:13]}  bxc3 {[%clk 0:00:13]} 34. Qxd8+ {[%clk 0:00:12]}  Rxd8 {[%clk 0:00:14]} 35. Nxc5 {[%clk 0:00:09]}  Bd4+ {[%clk 0:00:12]} 36. Bf2 {[%clk 0:00:09]}  Rexd6 {[%clk 0:00:13]} 37. Bxd4 {[%clk 0:00:08]}  Rxd4 {[%clk 0:00:14]} 38. Rc1 {[%clk 0:00:09]}  Rg4+ {[%clk 0:00:14]} 39. Kf2 {[%clk 0:00:08]}  c2 {[%clk 0:00:14]} 40. Bf3 {[%clk 0:00:07]}  Rc4 {[%clk 0:00:14]} 41. Nb7 {[%clk 0:00:05]}  Rd2+ {[%clk 0:00:13]} 42. Kg3 {[%clk 0:00:05]}  Rc3 {[%clk 0:00:13]} 43. Rfe1 {[%clk 0:00:04]}  Rg2+ {[%clk 0:00:14]} 44. Kf4 {[%clk 0:00:04]}  Rxh2 {[%clk 0:00:14]} 45. Re8+ {[%clk 0:00:03]}  Kg7 {[%clk 0:00:14]} 46. Nd6 {[%clk 0:00:02]}  Be6 {[%clk 0:00:15]} 47. Ne4 {[%clk 0:00:01]}  Rc4 {[%clk 0:00:15]} 48. Re7 {[%clk 0:00:00]}  Kf8 {[%clk 0:00:11]} 0-1


[Site "https://www.chess.com"]

[Event "Titled Tuesday Blitz July 11 Late 2023"]
[White "Mikhailov, Viacheslav"]
[Black "Stachanczyk, Jacek"]
[WhiteFideId "4187369"]
[BlackFideId "1116657"]
[WhiteElo "2681"]
[BlackElo "2361"]
[Result "1-0"]
[Round "2"]
[TimeControl "180+2"]
[Date "2023.07.11"]
[WhiteClock "0:00:04"]
[BlackClock "0:00:00"]
[Board "72"]

1. Nf3 {[%clk 0:03:00]}  Nf6 {[%clk 0:02:56]} 2. g3 {[%clk 0:02:59]}  g6 {[%clk 0:02:56]} 3. Bg2 {[%clk 0:03:00]}  Bg7 {[%clk 0:02:57]} 4. O-O {[%clk 0:03:01]}  O-O {[%clk 0:02:57]} 5. c4 {[%clk 0:03:01]}  c5 {[%clk 0:02:54]} 6. Nc3 {[%clk 0:03:01]}  Nc6 {[%clk 0:02:54]} 7. d4 {[%clk 0:03:01]}  cxd4 {[%clk 0:02:55]} 8. Nxd4 {[%clk 0:03:02]}  d6 {[%clk 0:02:55]} 9. Nxc6 {[%clk 0:03:01]}  bxc6 {[%clk 0:02:55]} 10. b3 {[%clk 0:03:02]}  d5 {[%clk 0:02:41]} 11. Bf4 {[%clk 0:02:37]}  e6 {[%clk 0:02:19]} 12. Rc1 {[%clk 0:02:32]}  Re8 {[%clk 0:02:04]} 13. Be5 {[%clk 0:02:30]}  Nd7 {[%clk 0:01:45]} 14. Bxg7 {[%clk 0:02:31]}  Kxg7 {[%clk 0:01:46]} 15. cxd5 {[%clk 0:02:31]}  cxd5 {[%clk 0:01:45]} 16. Nb5 {[%clk 0:02:27]}  Re7 {[%clk 0:01:26]} 17. Qd4+ {[%clk 0:02:08]}  Kg8 {[%clk 0:01:22]} 18. Nxa7 {[%clk 0:01:58]}  Bb7 {[%clk 0:01:05]} 19. Nc6 {[%clk 0:01:37]}  Bxc6 {[%clk 0:01:05]} 20. Rxc6 {[%clk 0:01:37]}  Rxa2 {[%clk 0:00:57]} 21. Rfc1 {[%clk 0:01:38]}  Re8 {[%clk 0:00:55]} 22. e4 {[%clk 0:01:34]}  Nf6 {[%clk 0:00:39]} 23. Rc8 {[%clk 0:00:41]}  Qe7 {[%clk 0:00:36]} 24. Rxe8+ {[%clk 0:00:37]}  Nxe8 {[%clk 0:00:33]} 25. exd5 {[%clk 0:00:38]}  exd5 {[%clk 0:00:30]} 26. Bxd5 {[%clk 0:00:38]}  Nf6 {[%clk 0:00:26]} 27. Rc8+ {[%clk 0:00:28]}  Kg7 {[%clk 0:00:26]} 28. Rc6 {[%clk 0:00:28]}  h5 {[%clk 0:00:20]} 29. Kg2 {[%clk 0:00:26]}  Qd8 {[%clk 0:00:15]} 30. Rc5 {[%clk 0:00:13]}  Qb6 {[%clk 0:00:15]} 31. Qc4 {[%clk 0:00:11]}  Qa7 {[%clk 0:00:12]} 32. Bf3 {[%clk 0:00:08]}  Rb2 {[%clk 0:00:11]} 33. h3 {[%clk 0:00:08]}  Nd7 {[%clk 0:00:07]} 34. Qd4+ {[%clk 0:00:06]}  Kh7 {[%clk 0:00:06]} 35. Qxb2 {[%clk 0:00:06]}  Qxc5 {[%clk 0:00:06]} 36. b4 {[%clk 0:00:05]}  Qb6 {[%clk 0:00:06]} 37. Qc3 {[%clk 0:00:04]}  h4 {[%clk 0:00:05]} 38. gxh4 {[%clk 0:00:04]}  Qb8 {[%clk 0:00:01]} 39. h5 {[%clk 0:00:04]}  Ne5 {[%clk 0:00:01]} 40. hxg6+ {[%clk 0:00:04]}  fxg6 {[%clk 0:00:02]} 41. Be4 {[%clk 0:00:04]}  Qd6 {[%clk 0:00:00]} 42. Qc5 {[%clk 0:00:04]} 1-0


[Site "https://www.chess.com"]

[Event "Titled Tuesday Blitz July 11 Late 2023"]
[White "Bolourchifard, Farzad"]
[Black "kiwibobo"]
[WhiteFideId "12510084"]
[WhiteElo "2670"]
[BlackElo "2327"]
[Result "1/2-1/2"]
[Round "2"]
[TimeControl "180+2"]
[Date "2023.07.11"]
[WhiteClock "0:00:04"]
[BlackClock "0:00:24"]
[Board "74"]

1. d4 {[%clk 0:03:00]}  Nf6 {[%clk 0:02:59]} 2. Nf3 {[%clk 0:03:00]}  g6 {[%clk 0:02:59]} 3. Bg5 {[%clk 0:03:00]}  Bg7 {[%clk 0:02:59]} 4. e3 {[%clk 0:03:01]}  O-O {[%clk 0:02:59]} 5. Be2 {[%clk 0:03:01]}  d5 {[%clk 0:02:58]} 6. O-O {[%clk 0:03:01]}  c5 {[%clk 0:02:58]} 7. c3 {[%clk 0:03:01]}  Nc6 {[%clk 0:02:59]} 8. Nbd2 {[%clk 0:03:01]}  Nd7 {[%clk 0:02:59]} 9. a4 {[%clk 0:02:59]}  Qe8 {[%clk 0:02:59]} 10. a5 {[%clk 0:02:58]}  e5 {[%clk 0:02:59]} 11. dxe5 {[%clk 0:02:57]}  Ndxe5 {[%clk 0:03:00]} 12. Bb5 {[%clk 0:02:46]}  a6 {[%clk 0:02:55]} 13. Be2 {[%clk 0:02:34]}  Be6 {[%clk 0:02:46]} 14. Qa4 {[%clk 0:02:30]}  Bd7 {[%clk 0:02:31]} 15. Qa3 {[%clk 0:02:28]}  c4 {[%clk 0:02:15]} 16. Nxe5 {[%clk 0:02:25]}  Nxe5 {[%clk 0:02:13]} 17. Be7 {[%clk 0:02:22]}  Bc6 {[%clk 0:02:05]} 18. Nf3 {[%clk 0:02:17]}  Nd7 {[%clk 0:01:54]} 19. Rfd1 {[%clk 0:02:11]}  Qc8 {[%clk 0:01:52]} 20. Bxf8 {[%clk 0:02:11]}  Bxf8 {[%clk 0:01:53]} 21. b4 {[%clk 0:02:11]}  Bd6 {[%clk 0:01:46]} 22. Qb2 {[%clk 0:01:56]}  Ne5 {[%clk 0:01:45]} 23. Nxe5 {[%clk 0:01:55]}  Bxe5 {[%clk 0:01:45]} 24. Bf3 {[%clk 0:01:53]}  Qe6 {[%clk 0:01:45]} 25. Qc2 {[%clk 0:01:35]}  Rd8 {[%clk 0:01:41]} 26. Rd2 {[%clk 0:01:26]}  d4 {[%clk 0:01:31]} 27. cxd4 {[%clk 0:01:03]}  Bxf3 {[%clk 0:01:28]} 28. gxf3 {[%clk 0:01:04]}  Bd6 {[%clk 0:01:17]} 29. Qe4 {[%clk 0:01:00]}  Qh3 {[%clk 0:01:11]} 30. f4 {[%clk 0:01:01]}  Bxb4 {[%clk 0:01:10]} 31. Rc2 {[%clk 0:00:58]}  c3 {[%clk 0:01:09]} 32. Qxb7 {[%clk 0:00:57]}  Qg4+ {[%clk 0:01:06]} 33. Qg2 {[%clk 0:00:57]}  Qf5 {[%clk 0:01:04]} 34. f3 {[%clk 0:00:49]}  Re8 {[%clk 0:01:02]} 35. e4 {[%clk 0:00:47]}  Qxf4 {[%clk 0:01:02]} 36. Qe2 {[%clk 0:00:41]}  Rd8 {[%clk 0:00:56]} 37. d5 {[%clk 0:00:38]}  Qd6 {[%clk 0:00:45]} 38. Kh1 {[%clk 0:00:32]}  Rc8 {[%clk 0:00:41]} 39. Rd1 {[%clk 0:00:31]}  Bxa5 {[%clk 0:00:40]} 40. e5 {[%clk 0:00:31]}  Qd7 {[%clk 0:00:38]} 41. Qxa6 {[%clk 0:00:19]}  Qh3 {[%clk 0:00:35]} 42. Qe2 {[%clk 0:00:19]}  Re8 {[%clk 0:00:34]} 43. d6 {[%clk 0:00:18]}  Rxe5 {[%clk 0:00:33]} 44. Qg2 {[%clk 0:00:15]}  Qd7 {[%clk 0:00:29]} 45. f4 {[%clk 0:00:15]}  Re6 {[%clk 0:00:28]} 46. Qd5 {[%clk 0:00:09]}  Bb4 {[%clk 0:00:28]} 47. Ra2 {[%clk 0:00:08]}  Rxd6 {[%clk 0:00:28]} 48. Ra8+ {[%clk 0:00:08]}  Kg7 {[%clk 0:00:28]} 49. Qe5+ {[%clk 0:00:08]}  f6 {[%clk 0:00:28]} 50. Rxd6 {[%clk 0:00:07]}  Bxd6 {[%clk 0:00:27]} 51. Qe8 {[%clk 0:00:05]}  Qb7+ {[%clk 0:00:27]} 52. Kg1 {[%clk 0:00:06]}  c2 {[%clk 0:00:26]} 53. Rc8 {[%clk 0:00:03]}  Qb1+ {[%clk 0:00:24]} 54. Kg2 {[%clk 0:00:04]}  c1=Q {[%clk 0:00:24]} 55. Qd7+ {[%clk 0:00:03]}  Kh6 {[%clk 0:00:23]} 56. Qh3+ {[%clk 0:00:03]}  Kg7 {[%clk 0:00:23]} 57. Qd7+ {[%clk 0:00:04]}  Kh6 {[%clk 0:00:23]} 58. Qh3+ {[%clk 0:00:04]}  Kg7 {[%clk 0:00:24]} 59. Qd7+ {[%clk 0:00:04]} 1/2-1/2


[Site "https://www.chess.com"]

[Event "Titled Tuesday Blitz July 11 Late 2023"]
[White "Omelja, Artem"]
[Black "Ward, Ieuan C"]
[WhiteFideId "14119846"]
[BlackFideId "406627"]
[WhiteElo "2655"]
[BlackElo "2292"]
[Result "1-0"]
[Round "2"]
[TimeControl "180+2"]
[Date "2023.07.11"]
[WhiteClock "0:00:51"]
[BlackClock "0:00:29"]
[Board "78"]

1. d4 {[%clk 0:03:00]}  Nf6 {[%clk 0:02:59]} 2. c4 {[%clk 0:03:00]}  e6 {[%clk 0:02:59]} 3. Nf3 {[%clk 0:03:00]}  b6 {[%clk 0:02:59]} 4. a3 {[%clk 0:03:00]}  Bb7 {[%clk 0:02:58]} 5. Nc3 {[%clk 0:03:01]}  d5 {[%clk 0:02:57]} 6. Bg5 {[%clk 0:03:01]}  Be7 {[%clk 0:02:57]} 7. e3 {[%clk 0:03:02]}  O-O {[%clk 0:02:57]} 8. Be2 {[%clk 0:02:59]}  h6 {[%clk 0:02:55]} 9. Bh4 {[%clk 0:02:58]}  Nbd7 {[%clk 0:02:54]} 10. O-O {[%clk 0:02:57]}  Ne4 {[%clk 0:02:47]} 11. Bxe7 {[%clk 0:02:39]}  Qxe7 {[%clk 0:02:48]} 12. Nxe4 {[%clk 0:02:20]}  dxe4 {[%clk 0:02:49]} 13. Nd2 {[%clk 0:02:21]}  c5 {[%clk 0:02:48]} 14. dxc5 {[%clk 0:02:11]}  Nxc5 {[%clk 0:02:44]} 15. b4 {[%clk 0:02:10]}  Nd3 {[%clk 0:02:41]} 16. Qc2 {[%clk 0:01:45]}  Rfd8 {[%clk 0:02:32]} 17. Rad1 {[%clk 0:01:37]}  f5 {[%clk 0:02:29]} 18. Nb3 {[%clk 0:01:34]}  Ne5 {[%clk 0:02:13]} 19. Rd4 {[%clk 0:01:24]}  Rac8 {[%clk 0:01:54]} 20. Rfd1 {[%clk 0:01:21]}  Nc6 {[%clk 0:01:52]} 21. Rxd8+ {[%clk 0:01:19]}  Rxd8 {[%clk 0:01:52]} 22. c5 {[%clk 0:01:18]}  Rxd1+ {[%clk 0:01:46]} 23. Qxd1 {[%clk 0:01:19]}  bxc5 {[%clk 0:01:40]} 24. Nxc5 {[%clk 0:01:20]}  Ne5 {[%clk 0:01:19]} 25. Qd4 {[%clk 0:01:10]}  Ng6 {[%clk 0:00:52]} 26. Bc4 {[%clk 0:01:07]}  Nf8 {[%clk 0:00:48]} 27. Qe5 {[%clk 0:01:02]}  Bc8 {[%clk 0:00:30]} 28. Qxf5 {[%clk 0:00:56]}  Qf6 {[%clk 0:00:31]} 29. Qxf6 {[%clk 0:00:52]}  gxf6 {[%clk 0:00:32]} 30. Nxe4 {[%clk 0:00:52]}  Kf7 {[%clk 0:00:29]} 31. Nd6+ {[%clk 0:00:51]} 1-0


[Site "https://www.chess.com"]

[Event "Titled Tuesday Blitz July 11 Late 2023"]
[White "Bjelobrk, Igor"]
[Black "Ardila, Oscar Humberto"]
[WhiteFideId "4300726"]
[BlackFideId "4404742"]
[WhiteElo "2633"]
[BlackElo "2281"]
[Result "1-0"]
[Round "2"]
[TimeControl "180+2"]
[Date "2023.07.11"]
[WhiteClock "0:00:45"]
[BlackClock "0:00:53"]
[Board "81"]

1. d4 {[%clk 0:02:57]}  Nf6 {[%clk 0:03:00]} 2. c4 {[%clk 0:02:56]}  e6 {[%clk 0:03:00]} 3. g3 {[%clk 0:02:56]}  Bb4+ {[%clk 0:03:00]} 4. Bd2 {[%clk 0:02:56]}  Qe7 {[%clk 0:03:00]} 5. Bg2 {[%clk 0:02:55]}  O-O {[%clk 0:03:00]} 6. e3 {[%clk 0:02:44]}  Bxd2+ {[%clk 0:02:59]} 7. Nxd2 {[%clk 0:02:40]}  d6 {[%clk 0:02:59]} 8. Ne2 {[%clk 0:02:34]}  Nbd7 {[%clk 0:02:57]} 9. O-O {[%clk 0:02:29]}  e5 {[%clk 0:02:57]} 10. Nc3 {[%clk 0:02:28]}  c6 {[%clk 0:02:55]} 11. d5 {[%clk 0:02:23]}  c5 {[%clk 0:02:54]} 12. a3 {[%clk 0:02:21]}  Rd8 {[%clk 0:02:48]} 13. b4 {[%clk 0:02:18]}  b6 {[%clk 0:02:47]} 14. Rb1 {[%clk 0:02:16]}  Ba6 {[%clk 0:02:38]} 15. Qa4 {[%clk 0:02:13]}  Bb7 {[%clk 0:02:35]} 16. Nb3 {[%clk 0:02:08]}  Rdc8 {[%clk 0:02:28]} 17. Nd2 {[%clk 0:01:46]}  cxb4 {[%clk 0:02:11]} 18. axb4 {[%clk 0:01:45]}  a5 {[%clk 0:02:07]} 19. Rfc1 {[%clk 0:01:44]}  axb4 {[%clk 0:01:50]} 20. Qxb4 {[%clk 0:01:44]}  Ra6 {[%clk 0:01:35]} 21. Bf1 {[%clk 0:01:41]}  Nc5 {[%clk 0:01:34]} 22. Nb3 {[%clk 0:01:36]}  Nfd7 {[%clk 0:01:32]} 23. Ra1 {[%clk 0:01:26]}  Rca8 {[%clk 0:01:31]} 24. Nxc5 {[%clk 0:01:00]}  Nxc5 {[%clk 0:01:29]} 25. Rxa6 {[%clk 0:00:58]}  Rxa6 {[%clk 0:01:28]} 26. Rb1 {[%clk 0:00:58]}  f5 {[%clk 0:01:21]} 27. Qb2 {[%clk 0:00:51]}  Bc8 {[%clk 0:01:07]} 28. Ra1 {[%clk 0:00:51]}  Qa7 {[%clk 0:01:05]} 29. Nb5 {[%clk 0:00:48]}  Qa8 {[%clk 0:01:02]} 30. Rxa6 {[%clk 0:00:47]}  Qxa6 {[%clk 0:01:02]} 31. Nxd6 {[%clk 0:00:46]}  Bd7 {[%clk 0:01:00]} 32. Qxe5 {[%clk 0:00:45]}  Qa1 {[%clk 0:00:53]} 33. Qxa1 {[%clk 0:00:45]} 1-0


[Site "https://www.chess.com"]